Cogmind - Beta 14 @@@ ROGUE MODE // 2025.05.06 @ 19:19:52 Player: Anting Result: Self-destructed Performance ------------- Evolutions (6) 3000 Regions Visited (26) 5200 Robots Destroyed (160) 800 Value Destroyed (5418) 5418 Prototype IDs (64) 1280 Alien Tech Used (0) 0 Bonus (3082) 3082 TOTAL SCORE: 18780 Bonus ------- High Alert Combat Kills 637 Follower Combat Kills 136 Entered Garrisons 200 Aligned with FarCom 300 Met Data Miner 300 Met Imprinter 300 Acquired ECA 300 Met Warlord at Base 500 MAIN.C Attacked Warlord 500 Friendly Fire -91 Cogmind --------- Core Integrity 677/1150 Matter 300/300 Energy 100/100 System Corruption 5% Temperature Cool (12) Movement Core (350) Ox6 Location -4/Factory Parts ------- > --- POWER (2) -------- (None) > --- PROPULSION (5) --- (None) > --- UTILITY (10) ----- Large Storage Unit Experimental Core Analyzer Experimental Hacking Suite Quantum Router > --- WEAPON (2) ------- (None) > --- INVENTORY (15) --- Cooled Nuclear Pulse Thruster Cooled Nuclear Pulse Thruster Experimental Terrain Scan Processor Experimental Melee Analysis Suite Experimental Melee Analysis Suite Improved Force Booster ECM Suite Advanced Reaction Control System Improved Force Field System Mapper Advanced Trap Extractor (4/8 Dirty Bomb) Advanced Trap Extractor (8/8 Fire) Smartbomb Launcher Heavy Pick Peak State ------------ > --- POWER ------------ Antimatter Reactor Improved Quantum Reactor > --- PROPULSION ------- Cooled Cesium-ion Thruster Cooled Nuclear Pulse Thruster Cooled Nuclear Pulse Thruster Improved Diametric Drive Improved Diametric Drive > --- UTILITY ---------- Medium Storage Unit Advanced Gravity Neutralizer Experimental Core Analyzer Improved Force Booster Experimental Phase Shifter Experimental Propulsion Shielding Experimental Hacking Suite System Mapper Deep Network Scanner Quantum Router > --- WEAPON ----------- Heavy Pick > --- INVENTORY -------- Cooled Nuclear Pulse Thruster Cooled Nuclear Pulse Thruster Experimental Terrain Scan Processor Experimental Melee Analysis Suite Experimental Melee Analysis Suite System Mapper Advanced Trap Extractor Advanced Trap Extractor Smartbomb Launcher [Rating: 146] Favorites ----------- Power Light Deuterium Engine Engine Light Deuterium Engine Power Core Light Nuclear Core Reactor Improved Quantum Reactor Propulsion Light Treads Treads Light Treads Leg Aluminum Leg Hover Unit Gravmag System Flight Unit Cesium-ion Thruster Utility Medium Storage Unit Device Weight Redist. System Storage Medium Storage Unit Processor Improved Signal Interpreter Hackware Hacking Suite Protection Experimental Propulsion Shielding Weapon Greatsword Energy Gun Backup Laser III Ballistic Gun Shotgun Ballistic Cannon Heavy Assault Cannon Launcher Grenade Launcher Impact Weapon Heavy Mace Slashing Weapon Greatsword Piercing Weapon Heavy Pick Special Melee Weapon Datajack Build | -11 -10 -10 -9 -9 -9 -8 -8 -8 -7 -7 -7 -7 -7 -7 -6 -6 -6 -6 -6 -5 -5 -5 -5 -5 -4 -4 ------- Run | Yrd Mat Min Mat Min Exi Min Mat Gar Fac Was Fac Low Low Zio Pro Fac Low Low Dat Pro Fac Upp Upp War Pro Fac Slots Evolved 12 | . . . 2 . . . 2 . 2 . . . . . . 2 . . . . 2 . . . . 2 Power 1 | . . . . . . . . . . . . . . . . . . . . . . . . . . 1 Propulsion 3 | . . . 2 . . . . . . . . . . . . 1 . . . . . . . . . . Utility 8 | . . . . . . . 2 . 2 . . . . . . 1 . . . . 2 . . . . 1 Weapon . | . . . . . . . . . . . . . . . . . . . . . . . . . . . Parts Attached 235 | 7 6 . 24 1 . . . 28 51 . 12 . 6 3 6 11 1 8 3 . 29 . 2 22 . 15 Power 16 | 1 1 . 2 . . . . . 3 . . . . . . 1 . . . . . . 1 4 . 3 Engine 8 | 1 1 . 1 . . . . . 2 . . . . . . 1 . . . . . . 1 . . 1 Core 2 | . . . 1 . . . . . 1 . . . . . . . . . . . . . . . . . Reactor 6 | . . . . . . . . . . . . . . . . . . . . . . . . 4 . 2 Propulsion 46 | 2 1 . 7 1 . . . 6 11 . . . . 2 2 3 . . 1 . 6 . 1 3 . . Treads 11 | . . . 6 1 . . . 4 . . . . . . . . . . . . . . . . . . Leg 4 | 2 1 . 1 . . . . . . . . . . . . . . . . . . . . . . . Wheel . | . . . . . . . . . . . . . . . . . . . . . . . . . . . Hover 3 | . . . . . . . . 2 1 . . . . . . . . . . . . . . . . . Flight 28 | . . . . . . . . . 10 . . . . 2 2 3 . . 1 . 6 . 1 3 . . Utility 118 | 2 2 . 6 . . . . 7 29 . 11 . 3 1 . 6 1 8 2 . 17 . . 14 . 9 Device 59 | 1 1 . 4 . . . . 2 12 . 5 . 2 1 . . 1 6 . . 8 . . 11 . 5 Storage 5 | 1 1 . 1 . . . . . 1 . . . . . . . . . . . . . . . . 1 Processor 6 | . . . . . . . . . 3 . . . 1 . . . . . . . 1 . . 1 . . Hackware 20 | . . . . . . . . . 3 . 1 . . . . 4 . . 2 . 7 . . 1 . 2 Protection 28 | . . . 1 . . . . 5 10 . 5 . . . . 2 . 2 . . 1 . . 1 . 1 Artifact . | . . . . . . . . . . . . . . . . . . . . . . . . . . . Weapon 55 | 2 2 . 9 . . . . 15 8 . 1 . 3 . 4 1 . . . . 6 . . 1 . 3 Energy Gun 2 | . . . . . . . . . . . . . . . . . . . . . 2 . . . . . Energy Cannon . | . . . . . . . . . . . . . . . . . . . . . . . . . . . Ballistic Gun 13 | 2 2 . 1 . . . . 6 2 . . . . . . . . . . . . . . . . . Ballistic Cannon 9 | . . . 5 . . . . 4 . . . . . . . . . . . . . . . . . . Launcher 9 | . . . . . . . . 3 . . . . 1 . 2 . . . . . 2 . . . . 1 Special Weapon . | . . . . . . . . . . . . . . . . . . . . . . . . . . . Impact Weapon 3 | . . . . . . . . 2 1 . . . . . . . . . . . . . . . . . Slashing Weapon 11 | . . . . . . . . . 3 . 1 . 2 . 2 1 . . . . 2 . . . . . Piercing Weapon 3 | . . . . . . . . . . . . . . . . . . . . . . . . 1 . 2 Special Melee Weapon 5 | . . . 3 . . . . . 2 . . . . . . . . . . . . . . . . . Unidentified Prototypes 21 | . . . 1 . . . . . 3 . . . . 2 . . . . 1 . 5 . . 7 . 2 Parts Lost 43 | . 1 . 8 2 . . . 7 3 . . . . . . . . 1 2 5 6 . . . . 8 Power 8 | . . . 2 . . . . 1 1 . . . . . . . . . . 1 1 . . . . 2 Propulsion 16 | . . . 4 2 . . . 3 1 . . . . . . . . . 1 2 1 . . . . 2 Utility 15 | . 1 . 1 . . . . 3 1 . . . . . . . . 1 1 1 2 . . . . 4 Weapon 4 | . . . 1 . . . . . . . . . . . . . . . . 1 2 . . . . . Highest Loss Streak 5 | . 1 . 2 2 . . . 4 2 . . . . . . . . 1 2 5 3 . . . . 5 To Critical Strikes . | . . . . . . . . . . . . . . . . . . . . . . . . . . . Average Slot Usage (%) 87 | . 99 100 89 77 77 77 63 69 91 92 91 92 92 92 92 90 92 92 92 79 84 94 94 94 94 83 Engine 6 | . 14 14 7 11 11 11 9 6 5 7 7 7 7 7 7 5 6 6 6 5 4 5 5 2 . . Treads 7 | . . . 32 33 33 33 27 13 . . . . . . . . . . . . . . . . . . Leg 3 | . 28 28 11 . . . . . . . . . . . . . . . . . . . . . . . Flight 18 | . . . . . . . . . 29 30 30 30 30 30 30 32 33 33 33 29 23 29 29 29 29 25 Device 9 | . 13 14 8 . . . . 3 13 15 11 15 15 17 23 7 12 12 13 13 9 5 5 6 5 10 Storage 7 | . 14 14 11 11 11 11 9 9 3 7 7 7 7 7 7 6 6 6 6 6 5 5 5 5 5 5 Processor 2 | . . . . . . . . . 3 . . . 6 7 7 1 . . . . . 5 5 3 5 5 Hackware 13 | . . . . . . . . . 14 15 18 15 15 12 7 22 20 20 20 18 29 29 29 29 29 21 Protection 4 | . . . 1 11 11 11 9 15 6 7 6 7 . . . 5 6 5 5 . 1 5 5 5 5 4 Ballistic Gun 3 | . 28 28 7 . . . . 7 3 . . . . . . . . . . . . . . . . . Ballistic Cannon 1 | . . . 6 11 11 11 9 3 . . . . . . . . . . . . . . . . . . Slashing Weapon 2 | . . . . . . . . . 3 7 6 7 7 7 6 5 6 6 6 5 4 5 5 4 . . Peak Build Rating 146 | 7 13 13 21 19 19 19 19 24 52 52 59 55 55 60 56 62 58 64 74 72 106 102 104 126 120 146 Average Rating 56 | 5 9 13 17 18 18 19 19 20 34 52 54 55 53 55 51 56 57 58 70 66 94 102 103 114 120 126 On Entrance 50 | . 7 13 13 19 18 19 19 19 16 52 52 55 55 54 56 52 58 58 64 72 46 102 102 104 120 120 Naked Turns . | . . . . . . . . . . . . . . . . . . . . . . . . . . . Heaviest Build 71 | 14 32 32 65 65 65 65 65 71 28 28 28 28 28 22 22 28 28 30 28 21 25 18 29 33 32 44 Greatest Support 80 | 20 20 20 80 60 60 60 60 80 31 31 31 31 31 31 29 34 33 33 40 34 34 29 30 41 32 57 Greatest Overweight (x) 7 | . 1 1 1 1 1 1 1 7 . . . . . . . . . 3 . . 3 . . 1 . 2 Average Overweight (x) . | . . 1 . 1 1 1 1 1 . . . . . . . . . . . . . . . . . . Largest Inventory Capacity 20 | 8 15 15 20 20 20 20 20 20 20 10 10 10 10 10 10 10 10 10 10 10 10 10 10 10 10 15 Average Capacity 13 | 7 10 15 19 20 20 20 20 20 7 10 10 10 10 10 10 10 10 10 10 10 10 10 10 10 10 13 Most Carried 20 | 4 13 15 20 18 18 20 20 20 19 10 10 10 10 10 10 10 10 9 10 9 10 10 10 10 10 15 Average Carried 12 | 3 8 13 18 17 17 19 19 18 7 10 9 10 9 10 9 9 9 8 9 9 9 10 10 9 10 13 Final Capacity 20 | 8 15 15 20 20 20 20 20 20 10 10 10 10 10 10 10 10 10 10 10 10 10 10 10 10 10 15 Final Carried 20 | 4 13 15 18 17 18 20 20 19 10 10 10 10 10 10 10 10 9 9 9 9 10 10 10 10 10 15 Class Distribution -------------------- 20% | Wizard-Sprinter 19% | Mutant 18% | Trapper-Sprinter 16% | Trapper-Mutant 9% | Hacker-Sprinter 7% | Wizard-Scout Dominant Class ---------------- Mutant | -10/Materials Mutant | -10/Mines Mutant | -9/Materials Trapper-Mutant | -9/Mines Trapper-Mutant | -9/Exiles Trapper-Mutant | -8/Mines Trapper-Mutant | -8/Materials Trapper-Mutant | -8/Garrison Scavenger-Sprinter | -7/Factory Trapper-Sprinter | -7/Waste Hacker-Sprinter | -7/Factory Trapper-Sprinter | -7/Lower Caves Trapper-Sprinter | -7/Lower Caves Trapper-Sprinter | -7/Zion Trapper-Sprinter | -6/Proximity Caves Hacker-Sprinter | -6/Factory Hacker-Sprinter | -6/Lower Caves Hacker-Sprinter | -6/Lower Caves Hacker-Sprinter | -6/Data Miner Hacker-Sprinter | -5/Proximity Caves Wizard-Scout | -5/Factory Wizard-Sprinter | -5/Upper Caves Wizard-Sprinter | -5/Upper Caves Wizard-Sprinter | -5/Warlord Wizard-Sprinter | -4/Proximity Caves Wizard-Sprinter | -4/Factory Resources | -11 -10 -10 -9 -9 -9 -8 -8 -8 -7 -7 -7 -7 -7 -7 -6 -6 -6 -6 -6 -5 -5 -5 -5 -5 -4 -4 ----------- Run | Yrd Mat Min Mat Min Exi Min Mat Gar Fac Was Fac Low Low Zio Pro Fac Low Low Dat Pro Fac Upp Upp War Pro Fac Matter Collected 4846 | 275 219 62 1081 97 . 114 . 924 667 . 147 . 99 30 20 21 204 85 20 . 143 175 20 260 . 183 Remotely . | . . . . . . . . . . . . . . . . . . . . . . . . . . . Salvage Created 5343 | 45 329 64 1271 29 . 121 . 1033 844 . 406 51 54 . 31 21 133 . 23 . 179 . . . . 709 Parts 332 | 6 32 3 87 . . 9 . 65 46 . 13 . 6 . 5 1 1 . 4 . 20 . . . . 34 Haulers Intercepted 11 | . 1 . 6 . . . . . 4 . . . . . . . . . . . . . . . . . Recyclers Shooed 6 | . 1 1 2 . . 1 . . . . . . . . . . . . . . 1 . . . . . Parts Field Recycled . | . . . . . . . . . . . . . . . . . . . . . . . . . . . Retrieved Matter . | . . . . . . . . . . . . . . . . . . . . . . . . . . . Parts Self-Destructed 40 | . . . . . . . . . . . . . 15 . 11 . 1 10 . . . 3 . . . . Prevented 3 | . . . . . . . . . . . . . . . 2 . . . . . . . . . 1 . Kills | -11 -10 -10 -9 -9 -9 -8 -8 -8 -7 -7 -7 -7 -7 -7 -6 -6 -6 -6 -6 -5 -5 -5 -5 -5 -4 -4 ------- Run | Yrd Mat Min Mat Min Exi Min Mat Gar Fac Was Fac Low Low Zio Pro Fac Low Low Dat Pro Fac Upp Upp War Pro Fac Combat Hostiles Destroyed 85 | . 7 1 22 2 . 6 . 34 2 . . . 3 . 1 . . . . . 2 . . . . 5 Melee 6 | . . . . . . . . 2 2 . . . . . 1 . . . . . . . . . . 1 Guns 28 | . 7 1 7 . . . . 13 . . . . . . . . . . . . . . . . . . Cannons 28 | . . . 15 2 . 6 . 5 . . . . . . . . . . . . . . . . . . AOE 22 | . . . . . . . . 13 . . . . 3 . . . . . . . 2 . . . . 4 Classes Destroyed 15 | 1 7 1 3 . . . . 1 . . . . 1 . . . 1 . . . . . . . . . Worker 11 | . . 1 4 . . . . . . . 1 . . . . . . . . . 5 . . . . . Builder 12 | . 1 . 2 . . . . . 6 . 1 . . . . . . . . . 1 . . . . 1 Tunneler 2 | 2 . . . . . . . . . . . . . . . . . . . . . . . . . . Hauler 11 | . 1 . 6 . . . . . 4 . . . . . . . . . . . . . . . . . Recycler 15 | . . . 4 . . . . . 4 . 3 . . . . . . . . . . . . . . 4 Minesweeper 5 | . . . . . . . . . . . . . 1 . 1 . 3 . . . . . . . . . Mechanic 2 | . 1 . . . . . . . . . . . . . . 1 . . . . . . . . . . Operator 2 | . 1 . 1 . . . . . . . . . . . . . . . . . . . . . . . Watcher 14 | . 1 . 2 . . . . . 4 . 3 . . . . . . . . . 1 . . . . 3 Swarmer 25 | . 3 . . . . 3 . 11 . . . . 3 . 1 . . . . . . . . . . 4 Grunt 35 | . 4 1 12 2 . 2 . 14 . . . . . . . . . . . . . . . . . . Duelist 3 | . . . 2 . . 1 . . . . . . . . . . . . . . . . . . . . Sentry 15 | . . . 8 . . . . 6 1 . . . . . . . . . . . . . . . . . Programmer 7 | . . . . . . . . 3 1 . . . . . . . . . . . 2 . . . . 1 Samaritan 1 | . . . . . . . . . . . . . . . . . 1 . . . . . . . . . Best Kill Streak 5 | 2 4 1 3 2 . 3 . 5 4 . 3 . 3 . 1 1 1 . 1 . 3 . . . . 4 Combat Bots Only 5 | . 4 1 2 2 . 3 . 5 1 . . . 3 . 1 . . . . . 2 . . . . 4 Max Kills in Single Turn 3 | 1 1 1 1 1 . 1 . 3 1 . 1 . 2 . 1 1 1 . 1 . 1 . . . . 2 Gunslinging . | . . . . . . . . . . . . . . . . . . . . . . . . . . . Exploded 3 | . . . . . . . . 3 . . . . 2 . . . . . . . 1 . . . . 2 Melee 1 | . . . . . . . . 1 1 . . . . . 1 . . . . . . . . . . 1 Uniques/NPCs Destroyed 1 | . . . . . . . . . . . . . . . . . . . 1 . . . . . . . Data Miner (-6/Data Miner) Combat | -11 -10 -10 -9 -9 -9 -8 -8 -8 -7 -7 -7 -7 -7 -7 -6 -6 -6 -6 -6 -5 -5 -5 -5 -5 -4 -4 -------- Run | Yrd Mat Min Mat Min Exi Min Mat Gar Fac Was Fac Low Low Zio Pro Fac Low Low Dat Pro Fac Upp Upp War Pro Fac Hostile Shots Fired 701 | . 38 2 137 16 . 16 . 91 77 . 21 13 8 . 17 30 15 11 14 19 47 22 . 36 . 71 Missed 286 | . 8 1 35 3 . 6 . 29 25 . 15 7 3 . 8 20 11 6 6 5 27 15 . 23 . 33 Damage Taken 6951 | . 333 32 1402 162 . 106 . 1195 389 . 89 87 71 . 106 112 30 62 373 278 493 107 . 244 . 1280 Core 1517 | . 29 . 164 26 . 26 . 138 54 . . . 16 . 28 32 . . 43 89 267 41 . 91 . 473 Absorbed by Shields 28 | . . . . . . . . . 28 . . . . . . . . . . . . . . . . . Redirected to Shielding 302 | . . . . . . . . . . . . . . . . . . . . . 11 43 . 43 . 205 Regen/Repaired (Parts) 548 | . . . . . . . . . 31 . 218 . . . . 157 . . . . . . . 60 . 82 Core Remaining (%) 76 | 100 . 88 . . . 46 . 74 . . . . . . 86 . . . . 80 . . . . 60 . Volleys Fired 314 | 5 36 5 119 9 . 12 . 75 18 . . . 3 . 5 . . . . . 13 . . 11 . 3 Largest 2 | 2 2 2 2 1 . 1 . 2 1 . . . 1 . 1 . . . . . 1 . . 1 . 1 Hottest 60 | 40 46 46 60 60 . 60 . 60 25 . . . 36 . 36 . . . . . 46 . . 40 . 46 Shots Fired 431 | 10 72 10 158 9 . 12 . 107 18 . . . 3 . 5 . . . . . 13 . . 11 . 3 Gun 273 | 10 72 10 79 . . . . 63 18 . . . . . . . . . . . 10 . . 11 . . Cannon 124 | . . . 79 9 . 12 . 24 . . . . . . . . . . . . . . . . . . Launcher 34 | . . . . . . . . 20 . . . . 3 . 5 . . . . . 3 . . . . 3 Special . | . . . . . . . . . . . . . . . . . . . . . . . . . . . Kinetic 376 | 10 72 10 158 9 . 12 . 87 18 . . . . . . . . . . . . . . . . . Thermal 21 | . . . . . . . . . . . . . . . . . . . . . 10 . . 11 . . Explosive 34 | . . . . . . . . 20 . . . . 3 . 5 . . . . . 3 . . . . 3 Electromagnetic . | . . . . . . . . . . . . . . . . . . . . . . . . . . . Robot Hit Streak 19 | 4 15 5 15 19 . 9 . 11 3 . . . . . . . . . . . 4 . . 5 . 2 Robot Miss Streak 5 | 1 4 1 5 1 . 1 . 5 2 . . . . . . . . . . . 2 . . 2 . . Penetration Max 1 | . . . . . . 1 . . . . . . . . . . . . . . . . . . . . Secondary Targets 1 | . . 1 . . . . . . . . . . . . . . . . . . . . . . . . Max Gunslinging Chain 1 | . . 1 . . . . . . . . . . . . . . . . . . . . . . . . Shots Hit Robots 389 | 6 52 10 126 8 . 10 . 66 32 . 13 1 2 . 2 2 12 . 1 . 13 . 3 8 . 22 Core Hits 217 | 7 23 5 61 1 . 5 . 50 18 . 6 1 5 . 2 . 3 . . . 9 . . 7 . 14 Critical Kills 1 | . . . 1 . . . . . . . . . . . . . . . . . . . . . . . Critical Parts Destroyed 4 | . 1 . . . . . . 2 1 . . . . . . . . . . . . . . . . . Critical Strikes 24 | . 1 . 8 3 . 1 . 6 3 . 1 . . . . . . . . . . . . . . 1 Destroy 2 | . 1 . 1 . . . . . . . . . . . . . . . . . . . . . . . Blast 14 | . . . 7 3 . 1 . 3 . . . . . . . . . . . . . . . . . . Smash 4 | . . . . . . . . 3 1 . . . . . . . . . . . . . . . . . Sever 3 | . . . . . . . . . 2 . 1 . . . . . . . . . . . . . . . Impale 1 | . . . . . . . . . . . . . . . . . . . . . . . . . . 1 Melee Attacks 335 | . . . 1 . . . . 7 44 . 31 13 12 1 28 19 15 11 12 5 52 9 6 8 3 58 Impact 26 | . . . . . . . . 7 19 . . . . . . . . . . . . . . . . . Slashing 246 | . . . . . . . . . 24 . 31 13 12 1 28 19 15 11 12 5 52 9 6 8 . . Piercing 61 | . . . . . . . . . . . . . . . . . . . . . . . . . 3 58 Sneak Attacks 39 | . . . 1 . . . . 1 9 . 7 . 1 . 1 2 4 . 1 . 5 . . . . 7 Combat Hostiles 1 | . . . . . . . . 1 . . . . . . . . . . . . . . . . . . Follow-up Attacks . | . . . . . . . . . . . . . . . . . . . . . . . . . . . Damage Inflicted 16004 | 83 654 167 4059 390 . 642 . 2600 1575 . 1205 97 356 . 176 232 910 . 132 . 861 . 110 152 . 1603 Guns 2885 | 74 654 158 899 . . . . 711 177 . . . . . . . . . . . 106 . . 106 . . Cannons 4591 | . . . 3152 390 . 642 . 407 . . . . . . . . . . . . . . . . . . Explosions 2236 | . . . 8 . . . . 1224 . . . . 217 . . . . . . . 236 . . . . 551 Melee 6274 | . . . . . . . . 258 1398 . 1205 97 139 . 176 232 910 . 132 . 519 . 110 46 . 1052 Ramming 18 | 9 . 9 . . . . . . . . . . . . . . . . . . . . . . . . Kinetic 7264 | 74 654 158 4051 390 . 642 . 1118 177 . . . . . . . . . . . . . . . . . Thermal 212 | . . . . . . . . . . . . . . . . . . . . . 106 . . 106 . . Explosive 2228 | . . . . . . . . 1224 . . . . 217 . . . . . . . 236 . . . . 551 Electromagnetic 8 | . . . 8 . . . . . . . . . . . . . . . . . . . . . . . Impact 818 | . . . . . . . . 258 560 . . . . . . . . . . . . . . . . . Slashing 4404 | . . . . . . . . . 838 . 1205 97 139 . 176 232 910 . 132 . 519 . 110 46 . . Piercing 1052 | . . . . . . . . . . . . . . . . . . . . . . . . . . 1052 Highest Corruption 7 | . . 1 . . . . . 6 . 7 7 . . . . . . . . . . . . . . 5 Average Corruption 4 | . . 1 . . . . . 4 . 7 4 . . . . . . . . . . . . . . 5 Corruption Purged 7 | . . . . . . . . . . . 7 . . . . . . . . . . . . . . . Corruption Blocked . | . . . . . . . . . . . . . . . . . . . . . . . . . . . Effects 45 | . . 1 . . . . . 34 . 1 8 . . . . . . . . . . . . . . 1 Message Errors 9 | . . 1 . . . . . 5 . 1 2 . . . . . . . . . . . . . . . Matter Fused 9 | . . . . . . . . 5 . . 3 . . . . . . . . . . . . . . 1 Heat Flow Errors 8 | . . . . . . . . 6 . . 2 . . . . . . . . . . . . . . . Energy Discharges 9 | . . . . . . . . 9 . . . . . . . . . . . . . . . . . . Data Loss (minor) 3 | . . . . . . . . 2 . . 1 . . . . . . . . . . . . . . . Data Loss (major) 4 | . . . . . . . . 4 . . . . . . . . . . . . . . . . . . Misfires 1 | . . . . . . . . 1 . . . . . . . . . . . . . . . . . . Alerts 1 | . . . . . . . . 1 . . . . . . . . . . . . . . . . . . Weapon Failures 1 | . . . . . . . . 1 . . . . . . . . . . . . . . . . . . Overload Shots . | . . . . . . . . . . . . . . . . . . . . . . . . . . . Overflow Damage 2189 | . . . 214 2 . 58 . 252 201 . 324 . 53 . . 152 428 . 72 . 191 . 26 . . 216 Projectiles 306 | . . . 214 2 . 58 . 32 . . . . . . . . . . . . . . . . . . Explosions 139 | . . . . . . . . 113 . . . . . . . . . . . . . . . . . 26 Melee 1744 | . . . . . . . . 107 201 . 324 . 53 . . 152 428 . 72 . 191 . 26 . . 190 Knockbacks 16 | . . . 9 . . 5 . 1 1 . . . . . . . . . . . . . . . . . Impact 1 | . . . . . . . . . 1 . . . . . . . . . . . . . . . . . Kinetic 14 | . . . 9 . . 4 . 1 . . . . . . . . . . . . . . . . . . Secondary 1 | . . . . . . 1 . . . . . . . . . . . . . . . . . . . . Self-Inflicted Damage 44 | . . . 4 . . . . 40 . . . . . . . . . . . . . . . . . . Shots 4 | . . . 1 . . . . 3 . . . . . . . . . . . . . . . . . . Rammed . | . . . . . . . . . . . . . . . . . . . . . . . . . . . Targets Rammed 4 | 3 . 1 . . . . . . . . . . . . . . . . . . . . . . . . Kicked 4 | 3 . 1 . . . . . . . . . . . . . . . . . . . . . . . . Crushed . | . . . . . . . . . . . . . . . . . . . . . . . . . . . Highest Temperature 272 | . 36 . 264 242 . 202 . 192 16 . 272 9 1 . 14 . . . 52 . 10 . . 68 . 62 Average Temperature 60 | . 12 . 60 121 . 85 . 49 7 . 121 9 1 . 7 . . . 37 . 10 . . 30 . 22 Received Heat Transfer 1744 | . 168 9 657 93 . 45 . 342 54 . 6 12 . . 27 6 . . . 57 84 . . 73 . 111 Siege Activations . | . . . . . . . . . . . . . . . . . . . . . . . . . . . Robots Corrupted 3 | . . . . . . . . 1 2 . . . . . . . . . . . . . . . . . Combat Hostiles 1 | . . . . . . . . 1 . . . . . . . . . . . . . . . . . . Parts Fried 5 | . . . . . . . . 4 1 . . . . . . . . . . . . . . . . . Impact Corruptions 7 | . . . . . . . . 4 3 . . . . . . . . . . . . . . . . . Robots Melted . | . . . . . . . . . . . . . . . . . . . . . . . . . . . Combat Hostiles . | . . . . . . . . . . . . . . . . . . . . . . . . . . . Parts Melted . | . . . . . . . . . . . . . . . . . . . . . . . . . . . Heat Transferred 463 | . . . . . . . . . . . . . . . . . . . . . 296 . . 167 . . Parts Sabotaged . | . . . . . . . . . . . . . . . . . . . . . . . . . . . Parts Stolen . | . . . . . . . . . . . . . . . . . . . . . . . . . . . Parts Stripped . | . . . . . . . . . . . . . . . . . . . . . . . . . . . Power Chain Reactions . | . . . . . . . . . . . . . . . . . . . . . . . . . . . Alert | -11 -10 -10 -9 -9 -9 -8 -8 -8 -7 -7 -7 -7 -7 -7 -6 -6 -6 -6 -6 -5 -5 -5 -5 -5 -4 -4 ------- Run | Yrd Mat Min Mat Min Exi Min Mat Gar Fac Was Fac Low Low Zio Pro Fac Low Low Dat Pro Fac Upp Upp War Pro Fac Peak Influence 1491 | 10 170 129 414 189 . 158 76 1491 934 295 345 . . . . 97 . . . . 242 . . . . 334 Initial 782 | . 6 19 . 156 . . 61 49 782 280 206 . . . . 50 . . . . 9 . . . . . Average 282 | 3 64 39 162 187 . 129 63 838 790 289 253 . . . . 58 . . . . 40 . . . . 90 Maximum Alert Level 4 | . . . 2 . . . . 4 3 1 1 . . . . . . . . . 1 . . . . 1 Low Security (%) 63 | 100 100 100 70 100 . 100 100 6 . . 30 . . . . 100 . . . . 97 . . . . 80 Level 1 14 | . . . 24 . . . . 10 . 100 69 . . . . . . . . . 2 . . . . 19 Level 2 4 | . . . 5 . . . . 23 . . . . . . . . . . . . . . . . . . Level 3 13 | . . . . . . . . 26 99 . . . . . . . . . . . . . . . . . Level 4 4 | . . . . . . . . 33 . . . . . . . . . . . . . . . . . . Level 5 . | . . . . . . . . . . . . . . . . . . . . . . . . . . . High Security . | . . . . . . . . . . . . . . . . . . . . . . . . . . . Max Security . | . . . . . . . . . . . . . . . . . . . . . . . . . . . Squads Dispatched 21 | . 1 . 1 . . . . . 3 . 1 . . . . 1 . . . . 9 . . . . 5 Investigation 8 | . . . . . . . . . 1 . 1 . . . . . . . . . 5 . . . . 1 Extermination 5 | . . . . . . . . . 1 . . . . . . . . . . . 2 . . . . 2 Reinforcement 7 | . 1 . 1 . . . . . 1 . . . . . . 1 . . . . 2 . . . . 1 Assault 1 | . . . . . . . . . . . . . . . . . . . . . . . . . . 1 Garrison . | . . . . . . . . . . . . . . . . . . . . . . . . . . . Intercept . | . . . . . . . . . . . . . . . . . . . . . . . . . . . Searches Triggered . | . . . . . . . . . . . . . . . . . . . . . . . . . . . Construction Impeded 1 | . . . . . . . . . . . . . . . . 1 . . . . . . . . . . Haulers Reinforced 1 | . . . . . . . . . 1 . . . . . . . . . . . . . . . . . Active Scanning Responses . | . . . . . . . . . . . . . . . . . . . . . . . . . . . Cargo Convoy Interrupts 2 | . . . . . . . . . 1 . . . . . . . . . . . . . . . . 1 Stealth | -11 -10 -10 -9 -9 -9 -8 -8 -8 -7 -7 -7 -7 -7 -7 -6 -6 -6 -6 -6 -5 -5 -5 -5 -5 -4 -4 --------- Run | Yrd Mat Min Mat Min Exi Min Mat Gar Fac Was Fac Low Low Zio Pro Fac Low Low Dat Pro Fac Upp Upp War Pro Fac Distress Signals 17 | . . . 4 . . . 1 . . . 3 . . . . . . . . . 3 . . 1 . 5 Communications Jammed . | . . . . . . . . . . . . . . . . . . . . . . . . . . . Distress Signals . | . . . . . . . . . . . . . . . . . . . . . . . . . . . Times Spotted 338 | . 12 6 40 2 . 5 5 32 9 4 7 1 7 . 12 5 5 6 4 10 34 9 5 83 . 35 Peak Tracking Total 18 | . 5 5 6 2 . 3 4 6 3 4 4 1 3 . 4 4 1 5 4 7 10 6 3 18 . 8 Tactical Retreats 61 | . 1 1 2 . . . . . 1 . 3 1 1 . 3 . 4 3 . 3 11 2 4 10 . 11 Traps | -11 -10 -10 -9 -9 -9 -8 -8 -8 -7 -7 -7 -7 -7 -7 -6 -6 -6 -6 -6 -5 -5 -5 -5 -5 -4 -4 ------- Run | Yrd Mat Min Mat Min Exi Min Mat Gar Fac Was Fac Low Low Zio Pro Fac Low Low Dat Pro Fac Upp Upp War Pro Fac Traps Triggered 13 | . . 1 . . . . . 3 2 . . . . . . 2 . . . . 3 . . . . 2 Indirectly . | . . . . . . . . . . . . . . . . . . . . . . . . . . . Trap Hack Attempts 122 | . . . 122 . . . . . . . . . . . . . . . . . . . . . . . Triggered . | . . . . . . . . . . . . . . . . . . . . . . . . . . . Disarmed 1 | . . . 1 . . . . . . . . . . . . . . . . . . . . . . . Reprogrammed 12 | . . . 12 . . . . . . . . . . . . . . . . . . . . . . . Reused 13 | . . . . . . . . . 2 . 9 . . . 1 . 1 . . . . . . . . . Traps Reconfigurated 16 | . . . . . . . . . 6 . 10 . . . . . . . . . . . . . . . Traps Extracted 26 | . . . 8 . . . . . 8 . . . . . . . . 2 . . . . . 8 . . Installed 24 | . . . . . . . . . 6 . . . . . 1 . 15 2 . . . . . . . . Triggered 45 | . . . . . . . . . 2 . 9 . 1 . 3 . 1 . . . . 2 1 23 1 2 Most Traps Carried 12 | . . . 8 8 8 8 8 8 10 10 10 10 10 10 10 10 10 10 10 10 10 8 8 12 12 12 Machines | -11 -10 -10 -9 -9 -9 -8 -8 -8 -7 -7 -7 -7 -7 -7 -6 -6 -6 -6 -6 -5 -5 -5 -5 -5 -4 -4 ---------- Run | Yrd Mat Min Mat Min Exi Min Mat Gar Fac Was Fac Low Low Zio Pro Fac Low Low Dat Pro Fac Upp Upp War Pro Fac Machines Disabled 27 | . . . 5 . . . . 17 . . . . . . . . . 1 . . 1 1 . . . 2 Max in Single Turn 2 | . . . 1 . . . . 2 . . . . . . . . . 1 . . 1 1 . . . 1 Garrison Access 9 | . . . . . . . . . 2 . 3 . . . . . . . . . 2 . . . . 2 Garrison Relay 4 | . . . . . . . . 4 . . . . . . . . . . . . . . . . . . Phase Generator 1 | . . . . . . . . 1 . . . . . . . . . . . . . . . . . . Machines Repaired . | . . . . . . . . . . . . . . . . . . . . . . . . . . . Machines Dismantled . | . . . . . . . . . . . . . . . . . . . . . . . . . . . Machines Sabotaged . | . . . . . . . . . . . . . . . . . . . . . . . . . . . Overloaded Fab Kills . | . . . . . . . . . . . . . . . . . . . . . . . . . . . Hacking | -11 -10 -10 -9 -9 -9 -8 -8 -8 -7 -7 -7 -7 -7 -7 -6 -6 -6 -6 -6 -5 -5 -5 -5 -5 -4 -4 --------- Run | Yrd Mat Min Mat Min Exi Min Mat Gar Fac Was Fac Low Low Zio Pro Fac Low Low Dat Pro Fac Upp Upp War Pro Fac Machines Accessed 73 | . . 1 4 . 2 . 1 1 10 . 13 1 . . . 6 1 1 3 . 15 . . 6 . 8 Terminals 28 | . . . 3 . . . . 1 5 . 7 . . . . 2 . . . . 6 . . . . 4 Fabricators 9 | . . . . . . . . . 1 . 1 . . . . . . . . . 5 . . . . 2 Repair Stations 7 | . . . . . . . . . 1 . 2 . . . . 2 . . . . 1 . . . . 1 Recycling Units . | . . . . . . . . . . . . . . . . . . . . . . . . . . . Scanalyzers 5 | . . . 1 . . . . . 1 . . . . . . 2 . . . . 1 . . . . . Garrison Access 9 | . . . . . . . 1 . 2 . 3 . . . . . . . . . 2 . . . . 1 Total Hacks 220 | . . 1 6 . 2 . 1 1 27 . 39 1 . . . 21 1 1 23 . 51 . . 12 . 33 Successful 158 | . . 1 4 . 2 . 1 1 11 . 17 1 . . . 14 1 1 23 . 43 . . 12 . 26 Failed 62 | . . . 2 . . . . . 16 . 22 . . . . 7 . . . . 8 . . . . 7 Catastrophic 7 | . . . 1 . . . . . 2 . 2 . . . . 2 . . . . . . . . . . Database Lockouts . | . . . . . . . . . . . . . . . . . . . . . . . . . . . Manual 82 | . . . 4 . 1 . . . 11 . 14 . . . . . . . . . 32 1 . 1 . 18 Terminals 88 | . . . 5 . . . . 1 14 . 23 . . . . 4 . . . . 25 . . . . 16 Fabricators 39 | . . . . . . . . . 3 . 3 . . . . . . . . . 19 . . . . 14 Repair Stations 25 | . . . . . . . . . 5 . 5 . . . . 11 . . . . 2 . . . . 2 Recycling Units . | . . . . . . . . . . . . . . . . . . . . . . . . . . . Scanalyzers 10 | . . . 1 . . . . . 1 . . . . . . 6 . . . . 2 . . . . . Garrison Access 17 | . . . . . . . 1 . 4 . 8 . . . . . . . . . 3 . . . . 1 Terminal Hacks 81 | . . 1 3 . 2 . . 1 3 . 6 1 . . . 1 1 1 23 . 16 . . 12 . 10 Record 18 | . . . . . 1 . . . . . . . . . . . . . 6 . . . . 11 . . Part Schematic 14 | . . . . . . . . . 1 . . . . . . . . . 9 . 1 . . . . 3 Robot Schematic 5 | . . . . . . . . . . . . . . . . . . . 5 . . . . . . . Prototype ID Bank 4 | . . . . . . . . . . . . . . . . . . . 3 . 1 . . . . . Open Door 5 | . . 1 . . . . . . . . . 1 . . . . 1 1 . . . . . 1 . . Branch Access Points 3 | . . . . . . . . . . . 1 . . . . 1 . . . . 1 . . . . . Machine Index 2 | . . . . . . . . . . . . . . . . . . . . . 1 . . . . 1 Terminal Index 1 | . . . . . . . . . . . 1 . . . . . . . . . . . . . . . Unreport Threat 9 | . . . . . . . . . . . . . . . . . . . . . 6 . . . . 3 Locate Traps 9 | . . . 2 . . . . . 1 . 4 . . . . . . . . . 1 . . . . 1 Reprogram Traps 1 | . . . 1 . . . . . . . . . . . . . . . . . . . . . . . Recall Investigation 2 | . . . . . . . . . . . . . . . . . . . . . 2 . . . . . Recall Extermination 3 | . . . . . . . . . . . . . . . . . . . . . 2 . . . . 1 Hauler Manifests 1 | . . . . . . . . . 1 . . . . . . . . . . . . . . . . . Zone Layout 2 | . . . . . . . . . . . . . . . . . . . . . 1 . . . . 1 Patrol Navigation 1 | . . . . . . . . 1 . . . . . . . . . . . . . . . . . . Derelict Proto ID Bank 1 | . . . . . 1 . . . . . . . . . . . . . . . . . . . . . Fabricator Hacks 20 | . . . . . . . . . 1 . 1 . . . . . . . . . 10 . . . . 8 Network Status 1 | . . . . . . . . . . . . . . . . . . . . . . . . . . 1 Load Schematic 11 | . . . . . . . . . . . . . . . . . . . . . 7 . . . . 4 Build 8 | . . . . . . . . . 1 . 1 . . . . . . . . . 3 . . . . 3 Repair Station Hacks 19 | . . . . . . . . . 2 . 4 . . . . 9 . . . . 2 . . . . 2 Scan Component 9 | . . . . . . . . . 1 . 2 . . . . 5 . . . . . . . . . 1 Repair 8 | . . . . . . . . . 1 . 2 . . . . 4 . . . . . . . . . 1 Refit 2 | . . . . . . . . . . . . . . . . . . . . . 2 . . . . . Recycling Unit Hacks . | . . . . . . . . . . . . . . . . . . . . . . . . . . . Scanalyzer 7 | . . . 1 . . . . . . . . . . . . 4 . . . . 2 . . . . . Insert Component 5 | . . . 1 . . . . . . . . . . . . 3 . . . . 1 . . . . . Analyze 2 | . . . . . . . . . . . . . . . . 1 . . . . 1 . . . . . Garrison Access Hacks 10 | . . . . . . . 1 . 3 . 3 . . . . . . . . . 2 . . . . 1 Unlock Access 2 | . . . . . . . 1 . 1 . . . . . . . . . . . . . . . . . Seal Access 8 | . . . . . . . . . 2 . 3 . . . . . . . . . 2 . . . . 1 Unauthorized Hacks 21 | . . . . . . . . . 2 . 3 . . . . . . . . . 11 . . . . 5 Terminals 8 | . . . . . . . . . 1 . 3 . . . . . . . . . 3 . . . . 1 Assimilate 5 | . . . . . . . . . 1 . 2 . . . . . . . . . 1 . . . . 1 Botnet 2 | . . . . . . . . . . . 1 . . . . . . . . . 1 . . . . . Operators 1 | . . . . . . . . . . . . . . . . . . . . . 1 . . . . . Fabricators 13 | . . . . . . . . . 1 . . . . . . . . . . . 8 . . . . 4 Prioritize 2 | . . . . . . . . . . . . . . . . . . . . . 1 . . . . 1 Liberate 2 | . . . . . . . . . . . . . . . . . . . . . 1 . . . . 1 Fabnet 1 | . . . . . . . . . . . . . . . . . . . . . 1 . . . . . Haulers 3 | . . . . . . . . . 1 . . . . . . . . . . . 1 . . . . 1 Recompile 5 | . . . . . . . . . . . . . . . . . . . . . 4 . . . . 1 Repair Stations . | . . . . . . . . . . . . . . . . . . . . . . . . . . . Recycling Units . | . . . . . . . . . . . . . . . . . . . . . . . . . . . Scanalyzers . | . . . . . . . . . . . . . . . . . . . . . . . . . . . Garrison Access . | . . . . . . . . . . . . . . . . . . . . . . . . . . . Data Cores Recovered . | . . . . . . . . . . . . . . . . . . . . . . . . . . . Used . | . . . . . . . . . . . . . . . . . . . . . . . . . . . Hacking Detections 41 | . . . 3 . . . . 1 7 . 10 . . . . 6 . . . . 8 . . . . 6 Full Trace Events 3 | . . . . . . . . . 1 . 1 . . . . . . . . . 1 . . . . . Feedback Events 1 | . . . . . . . . . 1 . . . . . . . . . . . . . . . . . Hackware Fried 1 | . . . . . . . . . 1 . . . . . . . . . . . . . . . . . Feedback Blocked . | . . . . . . . . . . . . . . . . . . . . . . . . . . . Robot Schematics Acquired 5 | . . . . . . . . . . . . . . . . . . . 5 . . . . . . . Robots Built 2 | . . . . . . . . . . . 2 . . . . . . . . . . . . . . . Authchips . | . . . . . . . . . . . . . . . . . . . . . . . . . . . Time 27 | . . . . . . . . . . . 27 . . . . . . . . . . . . . . . Total Robot Build Rating 2 | . . . . . . . . . . . 2 . . . . . . . . . . . . . . . Part Schematics Acquired 16 | . . . . . . . . . 1 . . . . . . 1 . . 9 . 2 . . . . 3 Parts Built 8 | . . . . . . . . . 2 . . . . . . . . . . . 3 . . . . 3 Authchips 5 | . . . . . . . . . . . . . . . . . . . . . 2 . . . . 3 Time 501 | . . . . . . . . . 58 . . . . . . . . . . . 164 . . . . 279 Total Part Build Rating 52 | . . . . . . . . . 14 . . . . . . . . . . . 17 . . . . 21 Parts Repaired 8 | . . . . . . . . . 1 . 2 . . . . 4 . . . . . . . . . 1 Time 279 | . . . . . . . . . 31 . 44 . . . . 164 . . . . . . . . . 40 Parts Recycled . | . . . . . . . . . . . . . . . . . . . . . . . . . . . Recycled Matter . | . . . . . . . . . . . . . . . . . . . . . . . . . . . Retrieved Matter . | . . . . . . . . . . . . . . . . . . . . . . . . . . . Retrieved Components . | . . . . . . . . . . . . . . . . . . . . . . . . . . . Parts Scanalyzed 2 | . . . . . . . . . . . . . . . . 1 . . . . 1 . . . . . Part Schematics Acquired 2 | . . . . . . . . . . . . . . . . 1 . . . . 1 . . . . . Parts Damaged 1 | . . . . . . . . . . . . . . . . 1 . . . . . . . . . . Bothacking | -11 -10 -10 -9 -9 -9 -8 -8 -8 -7 -7 -7 -7 -7 -7 -6 -6 -6 -6 -6 -5 -5 -5 -5 -5 -4 -4 ------------ Run | Yrd Mat Min Mat Min Exi Min Mat Gar Fac Was Fac Low Low Zio Pro Fac Low Low Dat Pro Fac Upp Upp War Pro Fac Used RIF Installer . | . . . . . . . . . . . . . . . . . . . . . . . . . . . Robots Hacked 2 | . . . . . . . . . 1 . . . . . . . . . . . . . . . . 1 Non-combat 1 | . . . . . . . . . 1 . . . . . . . . . . . . . . . . . Combat 1 | . . . . . . . . . . . . . . . . . . . . . . . . . . 1 Robot Hacks Applied 1 | . . . . . . . . . 1 . . . . . . . . . . . . . . . . . find_chute 1 | . . . . . . . . . 1 . . . . . . . . . . . . . . . . . Relay Couplers Released 19 | . . . . . . . . 16 . . . . . . . . . . . . . . . . . 3 Machine Destruction 16 | . . . . . . . . 13 . . . . . . . . . . . . . . . . . 3 Programmers 3 | . . . . . . . . 3 . . . . . . . . . . . . . . . . . . Fabnet Peak Effective % 3 | . . . . . . . . . . . . . . . . . . . . . . . . . 3 3 Autooverrided 1 | . . . . . . . . . . . . . . . . . . . . . . . . . . 1 Robots Rewired 5 | . . . . . . . . . . . . . . . . . . 4 . . . . . 1 . . Allies Hacked . | . . . . . . . . . . . . . . . . . . . . . . . . . . . Hacks Repelled . | . . . . . . . . . . . . . . . . . . . . . . . . . . . Allies | -11 -10 -10 -9 -9 -9 -8 -8 -8 -7 -7 -7 -7 -7 -7 -6 -6 -6 -6 -6 -5 -5 -5 -5 -5 -4 -4 -------- Run | Yrd Mat Min Mat Min Exi Min Mat Gar Fac Was Fac Low Low Zio Pro Fac Low Low Dat Pro Fac Upp Upp War Pro Fac Total Allies 19 | . . 3 . . . . . . 1 2 3 . . 2 . . . 4 . . 1 . . 1 . 2 Largest Group 4 | . . 3 1 . . . . . 1 2 2 . . 2 2 . . 4 . . 1 . . 1 . 1 Highest-Rated Group 106 | . . 40 16 . . . . . 26 57 16 . . 65 62 . . 106 . . 26 . . 49 . 26 Highest-Rated Ally 51 | . . 16 16 . . . . . 26 31 10 . . 51 48 . . 31 . . 26 . . 49 . 26 Total Orders 3 | . . 2 . . . . . . . . . . . . . . . . . . 1 . . . . . STAY 2 | . . 1 . . . . . . . . . . . . . . . . . . 1 . . . . . FOLLOW 1 | . . 1 . . . . . . . . . . . . . . . . . . . . . . . . Ally Attacks 54 | . . 23 . . . . . . . . . . . . 6 . . 18 . . . . . 7 . . Total Damage 752 | . . 235 . . . . . . . . . . . . 104 . . 283 . . . . . 130 . . Kills 10 | . . 4 . . . . . . . . . . . . 2 . . 4 . . . . . . . . Allies Corrupted . | . . . . . . . . . . . . . . . . . . . . . . . . . . . Allies Melted 2 | . . . . . . . . . . . . . . . . . . 1 . . . . . 1 . . Intel | -11 -10 -10 -9 -9 -9 -8 -8 -8 -7 -7 -7 -7 -7 -7 -6 -6 -6 -6 -6 -5 -5 -5 -5 -5 -4 -4 ------- Run | Yrd Mat Min Mat Min Exi Min Mat Gar Fac Was Fac Low Low Zio Pro Fac Low Low Dat Pro Fac Upp Upp War Pro Fac Robot Analysis Total . | . . . . . . . . . . . . . . . . . . . . . . . . . . . Derelict Logs Recovered 15 | . . . . 1 . . . . . . . 1 3 1 1 . 3 1 . 1 . 2 1 . . . Drone Launches . | . . . . . . . . . . . . . . . . . . . . . . . . . . . Drone Recoveries . | . . . . . . . . . . . . . . . . . . . . . . . . . . . Exploration | -11 -10 -10 -9 -9 -9 -8 -8 -8 -7 -7 -7 -7 -7 -7 -6 -6 -6 -6 -6 -5 -5 -5 -5 -5 -4 -4 ------------- Run | Yrd Mat Min Mat Min Exi Min Mat Gar Fac Was Fac Low Low Zio Pro Fac Low Low Dat Pro Fac Upp Upp War Pro Fac Turns Passed 18828 | 102 541 837 2505 377 503 178 199 1794 1189 21 847 459 1021 419 700 513 528 327 72 121 1684 581 274 1175 302 1559 Spaces Moved 21473 | 65 271 324 1099 148 210 60 54 689 2244 73 1615 651 915 803 844 764 879 568 123 400 2335 817 560 1579 373 3010 Core 12 | 10 . . . . . . . . . . . . . . . . . 1 . . 1 . . . . . Treads 1899 | . . . 1016 148 210 60 54 411 . . . . . . . . . . . . . . . . . . Legs 733 | 55 271 324 83 . . . . . . . . . . . . . . . . . . . . . . . Wheels . | . . . . . . . . . . . . . . . . . . . . . . . . . . . Hover 278 | . . . . . . . . 278 . . . . . . . . . . . . . . . . . . Flight 18551 | . . . . . . . . . 2244 73 1615 651 915 803 844 764 879 567 123 400 2334 817 560 1579 373 3010 Fastest Speed 12 | 50 120 190 160 240 240 240 240 160 28 29 29 29 29 28 27 24 24 24 17 24 18 25 25 12 21 12 Average Speed 48 | 109 142 190 173 240 240 240 240 215 28 29 29 29 29 28 27 24 24 24 22 25 28 25 25 24 21 21 Slowest Speed 500 | 120 190 190 240 240 240 240 240 500 34 29 29 29 29 29 28 25 24 200 24 30 200 25 26 98 21 170 Overloaded Moves 59 | . . . . . . . . . . . . . . . . . . . 22 . 3 . . 8 . 26 Propulsion Burnouts . | . . . . . . . . . . . . . . . . . . . . . . . . . . . Robots Hopped 74 | . . . . . . . . . 11 . 1 2 . . . . 1 1 . . 32 2 . 6 . 18 Cave-ins Triggered 1 | . . . . . . . . 1 . . . . . . . . . . . . . . . . . . Exploration Rate (%) 59 | 6 45 75 91 29 59 23 8 88 54 75 48 69 81 83 66 23 73 49 80 64 58 72 77 94 56 61 Regions Visited 26 Branch Regions 16 Pre-discovered Areas 9 | . . . . . 1 . . . . . . 1 1 1 1 . . . 1 . . 1 . 2 . . Known Exits Taken 11 | . . . . . . . 1 . . . 1 1 1 1 1 1 . . . . 1 1 1 . 1 . Unknown Exits Taken 12 | 1 1 1 1 1 1 1 . . . . . . . . . . 1 1 1 1 . . . 1 . . Scrap Searched 24 | . . 1 . 1 . . . . . . . 3 3 2 2 . 2 2 . 2 . 2 3 . 1 . Spaces Dug 288 | . . . . . . . . . 18 . 14 11 35 . 94 17 1 10 . 5 42 6 3 6 2 24 Terrain Destroyed 703 | . . . 22 3 . 3 . 290 18 . 14 11 43 . 94 17 1 10 . 5 78 6 3 6 2 77 Melee 195 | . . . . . . . . . 18 . 14 11 10 . 26 17 1 10 . 5 42 6 3 6 2 24 Projectile 35 | . . . 22 3 . 3 . 7 . . . . . . . . . . . . . . . . . . AOE 473 | . . . . . . . . 283 . . . . 33 . 68 . . . . . 36 . . . . 53 Terrain Rammed . | . . . . . . . . . . . . . . . . . . . . . . . . . . . Walls Destroyed . | . . . . . . . . . . . . . . . . . . . . . . . . . . . Machines Disabled . | . . . . . . . . . . . . . . . . . . . . . . . . . . . Actions | -11 -10 -10 -9 -9 -9 -8 -8 -8 -7 -7 -7 -7 -7 -7 -6 -6 -6 -6 -6 -5 -5 -5 -5 -5 -4 -4 --------- Run | Yrd Mat Min Mat Min Exi Min Mat Gar Fac Was Fac Low Low Zio Pro Fac Low Low Dat Pro Fac Upp Upp War Pro Fac Total 28655 | 83 361 535 1497 157 210 77 123 865 2675 72 1927 892 1642 986 1256 1049 1164 730 142 409 3228 1177 681 2345 589 3783 Wait 5919 | . 27 204 101 . . 2 67 48 263 . 263 231 699 179 365 220 255 125 . 5 788 354 112 701 214 696 Move 21314 | 65 270 323 1098 147 209 59 54 688 2223 72 1612 647 914 802 843 763 876 565 122 399 2277 812 559 1567 372 2976 Hop 62 | . . . . . . . . . 10 . 1 1 . . . . 1 1 . . 25 2 . 5 . 16 Pick Up 99 | 4 14 2 17 . 1 3 1 4 10 . 2 . 4 . 1 4 . 1 3 . 17 . . 3 . 8 Fast Attach 104 | 7 1 . 6 . . . . 11 22 . 6 . . 1 3 6 . 2 1 . 11 . 1 16 . 10 Attach 65 | . . . 12 1 . . . 11 9 . 1 . 3 . 2 4 1 1 1 . 13 . . 1 . 5 Detach 21 | . . . 3 . . . . 6 1 . . . . . 2 2 . . . . 4 . . . . 3 Swap 66 | . 5 . 6 . . . . 6 20 . 5 . 3 2 1 1 . 5 1 . 5 . 1 5 . . Drop 143 | . 8 . 12 . . 1 1 7 36 . 6 . 4 1 5 4 1 2 2 . 16 . 2 27 . 8 Fire 314 | 5 36 5 119 9 . 12 . 75 18 . . . 3 . 5 . . . . . 13 . . 11 . 3 Melee 335 | . . . 1 . . . . 7 44 . 31 13 12 1 28 19 15 11 12 5 52 9 6 8 3 58 Ram . | . . . . . . . . . . . . . . . . . . . . . . . . . . . Kick 3 | 2 . 1 . . . . . . . . . . . . . . . . . . . . . . . . Crush . | . . . . . . . . . . . . . . . . . . . . . . . . . . . Escape Stasis 48 | . . . . . . . . 2 13 . . . . . . 26 . . . . 7 . . . . . Rewire 16 | . . . . . . . . . . . . . . . . . . 15 . . . . . 1 . . Trap 146 | . . . 122 . . . . . 6 . . . . . 1 . 15 2 . . . . . . . . Miscellaneous . | . . . . . . . . . . . . . . . . . . . . . . . . . . . Route ------- -11/Scrapyard -10/Materials (discovered 2 exits: *Mat / *Min) -10/Mines -9/Materials (discovered 4 exits: *Mat x3 / [*Min]) -9/Mines -9/Exiles -8/Mines -8/Materials (discovered 2 exits: Fac / Gar) -8/Garrison (discovered 3 exits: *Fac x3) -7/Factory (discovered 4 exits: *Fac x2 / *Sto / *Low) -7/Waste -7/Factory (discovered 5 exits: *Fac x2 / *Sto / *Low x2) -7/Lower Caves -7/Lower Caves (discovered 2 exits: *Fac / *Zio) -7/Zion -6/Proximity Caves -6/Factory (discovered 2 exits: *Low x2) -6/Lower Caves -6/Lower Caves (discovered 2 exits: *Fac / *Dat) -6/Data Miner -5/Proximity Caves -5/Factory (discovered 4 exits: *Fac x2 / *Upp x2) -5/Upper Caves -5/Upper Caves (discovered 2 exits: *Fac / *War) -5/Warlord -4/Proximity Caves -4/Factory (discovered 1 exit: Res) History --------- Turn | Location | Event 4 | -11/Scrapyard | Discovered new exit (range 15) 103 | -11/Scrapyard | Entered Materials 231 | -10/Materials | Discovered new exit (range 3) 314 | -10/Materials | Build established: Mutant 569 | -10/Materials | Discovered new exit (range 14) 644 | -10/Materials | Entered Mines 728 | -10/Mines | Assisted by bots powering up and referring to "LRC-V3" 1207 | -10/Mines | Met a Derelict who couldn't figure out how to use a Trap Extractor 1428 | -10/Mines | Discovered new exit (range 15) 1481 | -10/Mines | Entered Materials 1481 | -9/Materials | Accompanied by 1 ally 1481 | -9/Materials | Evolved 2 slots: Propulsion x2 2271 | -9/Materials | Discovered new exit (range 16) 3372 | -9/Materials | Discovered new exit (range 5) 3880 | -9/Materials | Discovered new exit (range 10) 3941 | -9/Materials | Discovered new exit (range 15) 3986 | -9/Materials | Entered Mines 4010 | -9/Mines | Build established: Trapper-Mutant 4108 | -9/Mines | Learned location of 1 exit from Materials 4353 | -9/Mines | Deemed a non-threat by the Exiles lab entrance 4353 | -9/Mines | Discovered new exit (range 5) 4363 | -9/Mines | Entered Exiles 4421 | -9/Exiles | Met 8R-AWN 4462 | -9/Exiles | Met EX-HEX 4534 | -9/Exiles | Met EX-BIN 4565 | -9/Exiles | Aligned with FarCom system 4567 | -9/Exiles | Given EX-Vault access code 4625 | -9/Exiles | Opened EX-Vault 4639 | -9/Exiles | Found Trap Reconfigurator 4688 | -9/Exiles | Warned to stay clear of 0b10 Research branches 4758 | -9/Exiles | Met EX-DEC 4768 | -9/Exiles | Learned location of Zion (-7) 4842 | -9/Exiles | Discovered new exit (range 10) 4866 | -9/Exiles | Left Exiles lab with Trap Reconfigurator 4866 | -9/Exiles | Entered Mines 4925 | -8/Mines | Core integrity fell below 50% 5034 | -8/Mines | Discovered new exit (range 5) 5044 | -8/Mines | Entered Materials 5044 | -8/Materials | Evolved 2 slots: Utility x2 5045 | -8/Materials | Identified exit to Factory 5243 | -8/Materials | Identified exit to Garrison 5243 | -8/Materials | Entered Garrison 5359 | -8/Garrison | Triggered checkpoint 5544 | -8/Garrison | Triggered checkpoint 5653 | -8/Garrison | Triggered checkpoint 5705 | -8/Garrison | Phase Generator disabled 5975 | -8/Garrison | Garrison Relay disabled 6009 | -8/Garrison | Crushed by falling debris 6040 | -8/Garrison | Lost 4 parts (2n2u) 6141 | -8/Garrison | Discovered exit to Factory (range 12) 6275 | -8/Garrison | Triggered checkpoint 6472 | -8/Garrison | Discovered exit to Factory (range 3) 6561 | -8/Garrison | Garrison Relay disabled 6593 | -8/Garrison | Triggered checkpoint 6633 | -8/Garrison | Triggered checkpoint 6893 | -8/Garrison | Triggered checkpoint 6914 | -8/Garrison | Garrison Relay disabled 6945 | -8/Garrison | Discovered exit to Factory (range 15) 7009 | -8/Garrison | Build established: Scavenger-Mutant 7037 | -8/Garrison | Entered Factory 7037 | -7/Factory | Evolved 2 slots: Utility x2 7083 | -7/Factory | Discovered new exit (range 5) 7240 | -7/Factory | Discovered new exit (range 11) 7255 | -7/Factory | Identified exit to Factory 7438 | -7/Factory | Discovered new exit (range 6) 7605 | -7/Factory | Fabricated Impulse Thruster? 7618 | -7/Factory | Build established: Scavenger-Scout 7627 | -7/Factory | Identified exit to Garrison 7874 | -7/Factory | Discovered new exit (range 8) 7977 | -7/Factory | Cargo convoy interrupted 8027 | -7/Factory | Found Prototype Processor 8027 | -7/Factory | Identified Exp. Signal Interpreter 8033 | -7/Factory | Found Prototype Hackware 8036 | -7/Factory | Found Prototype Processor 8172 | -7/Factory | Repaired Impulse Thruster 8173 | -7/Factory | System Shield fried by hacking feedback 8226 | -7/Factory | Manually triggered Chute Trap 8226 | -7/Factory | Sucked down chute 8226 | -7/Factory | Entered Waste 8226 | -7/Waste | Met up with 1 ally sucked down the chute earlier 8227 | -7/Waste | Met a frightened Derelict 8233 | -7/Waste | Spotted C-40 Crusher 8241 | -7/Waste | EMP discharged 8241 | -7/Waste | Spotted C-40 Crusher 8242 | -7/Waste | Spotted C-40 Crusher 8243 | -7/Waste | Spotted C-40 Crusher 8243 | -7/Waste | Discovered new exit (range 15) 8247 | -7/Waste | Entered Factory 8283 | -7/Factory | Repaired Greatsword 8306 | -7/Factory | Repaired Imp. Medium Armor Plating 8313 | -7/Factory | Discovered exit to Factory (range 3) 8351 | -7/Factory | Fabricated R-06 Scavenger? 8383 | -7/Factory | Discovered exit to Factory (range 10) 8462 | -7/Factory | Build established: Trapper-Sprinter 8544 | -7/Factory | Discovered new exit (range 11) 8653 | -7/Factory | Identified exit to Storage 8653 | -7/Factory | Identified exit to Lower Caves 8903 | -7/Factory | Build established: Hacker-Sprinter 9094 | -7/Factory | Entered Lower Caves 9094 | -7/Lower Caves | Spotted B-75 Beast 9099 | -7/Lower Caves | Identified exit to Lower Caves 9101 | -7/Lower Caves | Met a Warlord Commander 9102 | -7/Lower Caves | Learned location of Warlord (-5) 9103 | -7/Lower Caves | Warlord Commander delivered Encrypted Comm Array 9332 | -7/Lower Caves | Encountered a Warlord checkpoint 9389 | -7/Lower Caves | Build established: Trapper-Sprinter 9553 | -7/Lower Caves | Entered another Lower Caves area 9574 | -7/Lower Caves | Discovered exit to Factory (range 9) 10326 | -7/Lower Caves | Encountered a Warlord checkpoint 10326 | -7/Lower Caves | Learned location of Extension (-4) 10546 | -7/Lower Caves | Discovered new exit (range 8) 10551 | -7/Lower Caves | Identified exit to Zion 10566 | -7/Lower Caves | Learned 4 Factory zone layouts 10566 | -7/Lower Caves | Spotted B-75 Beast 10574 | -7/Lower Caves | Entered Zion 10592 | -7/Zion | Discovered new exit (range 11) 10686 | -7/Zion | Learned Factory emergency access door positions 10808 | -7/Zion | Gained Derelict followers 10814 | -7/Zion | Learned location of Data Miner (-6) 10846 | -7/Zion | Rebuked by Imprinter 10858 | -7/Zion | Given the Hacking Drone Bay 10859 | -7/Zion | Found Prototype Device 10859 | -7/Zion | Identified Hacking Drone Bay 10978 | -7/Zion | Identified exit to Proximity Caves 10993 | -7/Zion | Entered Proximity Caves 10993 | -6/Proximity Caves | Accompanied by 2 allies 11157 | -6/Proximity Caves | Received a Behemoth hack from an annoying Tinkerer 11690 | -6/Proximity Caves | Discovered exit to Factory (range 15) 11692 | -6/Proximity Caves | Attracted the attention of an 0b10 checkpoint 11693 | -6/Proximity Caves | Entered Factory 11693 | -6/Factory | Evolved 2 slots: Propulsion x1, Utility x1 11694 | -6/Factory | Identified exit to Lower Caves 11748 | -6/Factory | Repaired Greatsword 11787 | -6/Factory | Repaired Cesium-ion Thruster 11816 | -6/Factory | Identified Exp. Hacking Suite 12080 | -6/Factory | Repaired Lgt. Deuterium Engine 12126 | -6/Factory | Repaired Imp. Medium Armor Plating 12206 | -6/Factory | Entered Lower Caves 12217 | -6/Lower Caves | Encountered a Warlord checkpoint 12225 | -6/Lower Caves | Learned 4 Factory zone layouts 12229 | -6/Lower Caves | Learned Factory security intel 12248 | -6/Lower Caves | Spotted B-75 Beast 12375 | -6/Lower Caves | Build established: Hacker-Sprinter 12708 | -6/Lower Caves | Discovered new exit (range 12) 12734 | -6/Lower Caves | Entered another Lower Caves area 12747 | -6/Lower Caves | Learned Factory emergency access door positions 12750 | -6/Lower Caves | Spotted B-75 Beast 12904 | -6/Lower Caves | Discovered new exit (range 10) 12928 | -6/Lower Caves | Attacked by a delusional Derelict stockpiling Unaware 13059 | -6/Lower Caves | Discovered new exit (range 8) 13061 | -6/Lower Caves | Entered Data Miner 13061 | -6/Data Miner | Discovered new exit (range 6) 13066 | -6/Data Miner | Met Data Miner 13070 | -6/Data Miner | Acquired the access code to Warlord's prototype stash 13070 | -6/Data Miner | Learned location of Section 7 (-2) 13074 | -6/Data Miner | Received God Mode back door access code from Data Miner 13079 | -6/Data Miner | Destroyed Data Miner 13082 | -6/Data Miner | Found Prototype Hackware 13084 | -6/Data Miner | Found Prototype Hackware 13085 | -6/Data Miner | Found Prototype Hackware 13085 | -6/Data Miner | Identified Ghost Barrier 13088 | -6/Data Miner | Data Conduit disabled 13089 | -6/Data Miner | Found Prototype Hackware 13133 | -6/Data Miner | Entered Proximity Caves 13225 | -5/Proximity Caves | Spotted B-75 Beast 13246 | -5/Proximity Caves | Learned Factory stockpile data 13251 | -5/Proximity Caves | Discovered new exit (range 6) 13254 | -5/Proximity Caves | Entered Factory 13254 | -5/Factory | Evolved 2 slots: Utility x2 13255 | -5/Factory | Identified exit to Upper Caves 13256 | -5/Factory | Identified exit to Factory 13263 | -5/Factory | Lost 5 parts (1p2n1u1w) 13264 | -5/Factory | Identified System Mapper 13265 | -5/Factory | Identified Deep Network Scanner 13273 | -5/Factory | Identified Quantum Router 13710 | -5/Factory | Spotted B-75 Beast 13751 | -5/Factory | Lost 3 parts (1n1u1w) 13790 | -5/Factory | Build established: Wizard-Sprinter 13954 | -5/Factory | Identified Exp. Terrain Scan Processor 13994 | -5/Factory | Fabricated Cld. Nuclear Pulse Thruster (x1) 14035 | -5/Factory | Fabricated Exp. Propulsion Shielding? 14149 | -5/Factory | Build established: Wizard-Scout 14369 | -5/Factory | Fabricated Cld. Nuclear Pulse Thruster? 14585 | -5/Factory | Discovered exit to Factory (range 16) 14938 | -5/Factory | Entered Upper Caves 14969 | -5/Upper Caves | Acquired the password to a Derelict Tinkerer's latest research 15241 | -5/Upper Caves | Build established: Wizard-Sprinter 15395 | -5/Upper Caves | Caught by Unaware searching for contraband prototypes 15425 | -5/Upper Caves | Learned Factory stockpile data 15435 | -5/Upper Caves | Encountered a Warlord checkpoint 15437 | -5/Upper Caves | Learned location of Armory (-3) 15504 | -5/Upper Caves | Attracted the attention of an 0b10 checkpoint 15518 | -5/Upper Caves | Discovered new exit (range 4) 15519 | -5/Upper Caves | Identified exit to Upper Caves 15519 | -5/Upper Caves | Entered another Upper Caves area 15532 | -5/Upper Caves | Discovered exit to Factory (range 10) 15626 | -5/Upper Caves | Learned location of 1 exit from Factory 15702 | -5/Upper Caves | Attracted the attention of an 0b10 checkpoint 15785 | -5/Upper Caves | Discovered new exit (range 14) 15789 | -5/Upper Caves | Identified exit to Warlord 15793 | -5/Upper Caves | Entered Warlord 16054 | -5/Warlord | Learned 4 Armory zone layouts 16054 | -5/Warlord | Learned Research repair station intel 16054 | -5/Warlord | Learned Armory fabricator intel 16093 | -5/Warlord | Warlord's base attacked by MAIN.C 16118 | -5/Warlord | Met Warlord 16121 | -5/Warlord | Opened Warlord's prototype stash 16123 | -5/Warlord | Found Prototype Device 16123 | -5/Warlord | Identified Exp. Phase Shifter 16126 | -5/Warlord | Found Prototype Device 16126 | -5/Warlord | Identified System Purifier 16140 | -5/Warlord | Found System Mapper 16354 | -5/Warlord | Spotted B-86 Titan 16390 | -5/Warlord | Warlord forces counterattacked 16398 | -5/Warlord | Spotted Executioner 16484 | -5/Warlord | Found Prototype Device 16484 | -5/Warlord | Identified Adv. Kinecellerator 16487 | -5/Warlord | Found Prototype Processor 16487 | -5/Warlord | Identified Exp. Core Analyzer 16494 | -5/Warlord | Spotted Striker 16494 | -5/Warlord | Spotted Striker 16531 | -5/Warlord | Spotted Executioner 16535 | -5/Warlord | Spotted Striker 16612 | -5/Warlord | Lost 35 allies 16768 | -5/Warlord | Warlord base infiltrated, sounded retreat 16879 | -5/Warlord | Spotted Executioner 16920 | -5/Warlord | Lost 11 allies 16936 | -5/Warlord | Spotted Striker 16936 | -5/Warlord | Spotted Executioner 16967 | -5/Warlord | Discovered new exit (range 9) 16968 | -5/Warlord | Entered Proximity Caves 16970 | -4/Proximity Caves | Spotted B-86 Titan 16971 | -4/Proximity Caves | Lost 7 allies 17260 | -4/Proximity Caves | Discovered exit to Factory (range 6) 17270 | -4/Proximity Caves | Entered Factory 17270 | -4/Factory | Evolved 2 slots: Power x1, Utility x1 17271 | -4/Factory | Identified exit to Research 17449 | -4/Factory | Fabricated Exp. Melee Analysis Suite? 17564 | -4/Factory | Build established: Wizard-Scout 17567 | -4/Factory | Fabricated Exp. Melee Analysis Suite? 17671 | -4/Factory | Fabricated Adv. Gravity Neutralizer (x1) 17846 | -4/Factory | Repaired Exp. Propulsion Shielding 17963 | -4/Factory | Build established: Wizard-Sprinter 18346 | -4/Factory | Local machine network offline 18346 | -4/Factory | Cargo convoy interrupted 18420 | -4/Factory | Spotted B-86 Titan 18829 | -4/Factory | Self-destructed Last Messages --------------- 18807_ Triggered Fusion Bomb Trap. 18807_ An explosion rips through the floor. 18807_ Exp. Propulsion Shielding destroyed. 18807_ Fusion Modulator explodes. 18807_ Fabricator disabled. 18807_ Fusion Modulator explodes. 18807_ Cld. Nuclear Pulse Thruster destroyed. 18808_ Lgt. Angular Momentum Engine destroyed. 18808_ Knocked back. 18809_ Cld. Cesium-ion Thruster destroyed. 18809_ System corrupted by crushing effect (+5). 18809_ Knocked back. 18812_ Imp. Diametric Drive severed. 18813_ Cld. Nuclear Pulse Thruster severed. 18814_ The unstable cave ceiling collapses. 18815_ Deep Network Scanner severed. 18818_ System corrupted: Matter fused (-5). 18822_ System Mapper destroyed. 18824_ Adv. Gravity Neutralizer severed. 18828_ Imp. Diametric Drive severed. Map ----- +----------------------------------------------------+ | ??????# "F " ###???# "#???????????? | | ??????? ? ?????##! #????????????? | | ??????? ? ###### # # ""########?##### | | ??????? ??? ###?##### | | ?????????????"" | | ?????????????"" | | ?????????????"" | | ???????????"""" | | ?????????? gA | | ?????????? """""" """""" | | ?????????????### # # """""" """""" | | ???????????????# # # """""" """""" | | ???????????????# ?# # """""" """""" | | ???????????????# ??# # """""" """""" | | ???????????????# ????+ = / # """""" """""" | | ???????????????+ ?????#gg # """""" """""" | | ???????????????? ??????# = # A"""""" """""" | | ???????????????????????# # """""" """""" | | ???????????????????????# g # | | ???????????????????????# # | | ???????????????????????# # | | ???????????????????????# ! ### ########## | | ???????????????????????# ### ########## | | ???????????????????????# ! ### ########## | | ???????????????????????#cc! ### ## | | ???????????????????????# @ ### ## """ | | ???????????????????????# ### ## "Y """ | | ????????????????????g??+ ### ## """ """ | | ???????????????????????# ##! # """ | | ???????????????????????########### A=!=# | | ????????????????????????????????## [%=# """ """ | | ????????????????????????????????## *==/ """ """ | | ????????????????????????????????## !!!%# """ """ | | ????????????????????????????????## !%!!=# | | ????????????????????????????????## != %=# | | ????????????????????????????????#### ### | | ??????????????????????????????Y?#### ########### | | ?????????????????????????????????? # %? | | ?????????????????????????????????? # ??????????? | | ?????????????????????????????????? # %??????????? | | ?????????????????????????????????? # %??????????? | | ?????????????????????????????????? # ??????????? | | ?????????????????????????????????? + ??????????? | | ?????????????????????????????????? # ???????????? | | ?????????????????????????????????? # ???????????? | | ?????????????????????????????????? # ???????????? | | ?????????????????????????????????? # ???????""" | | ?????????????????????????????????????????????##### | | ???????????????????????????????????????????? # | | ?????#############?????????????????????????? # | +----------------------------------------------------+ Best States ------------- Heat Dissipation 43 Energy Generation 29 Energy Capacity 350 Matter Stores 300 Matter Capacity 300 Sight Range 16 Robot Scan Range 15 Terrain Scan Density 10 Additional Mass Support 16 Armor Coverage 450 Propulsion Shielding 90 Phase Shifting 20 Evasion (%) 85 Core Analysis 8 Recoil Reduction 4 Force Boost 30 Offensive Hacking 73 Defensive Hacking 39 Authchip Count 2 Trap Extractor Capacity 8 Item Schematics ----------------- Hvy. Machine Gun | -7/Factory | Hacked Cld. Nuclear Pulse Thruster | -6/Factory | Scanalyzed Lgt. Particle Reactor | -6/Data Miner | Free Micro-nuke Launcher | -6/Data Miner | Free Imp. Cloaking Device | -6/Data Miner | Free Mni. Smartbomb Launcher | -6/Data Miner | Free Imp. Antigrav System | -6/Data Miner | Free Imp. Matter Compressor | -6/Data Miner | Free Cld. Gravmag System | -6/Data Miner | Free Combat Drone Bay | -6/Data Miner | Free Lgt. Regenerative Plating | -6/Data Miner | Free Exp. Propulsion Shielding | -5/Factory | Hacked Exp. Terrain Scan Processor | -5/Factory | Scanalyzed Adv. Gravity Neutralizer | -4/Factory | Hacked Exp. Melee Analysis Suite | -4/Factory | Hacked Adv. Reaction Control System | -4/Factory | Hacked Robot Schematics ------------------ R-10 Processor | -6/Data Miner | Free B-60 Warrior | -6/Data Miner | Free G-67 Veteran | -6/Data Miner | Free E-15 Imp | -6/Data Miner | Free G-50 Soldier | -6/Data Miner | Free Fabricated ------------ Impulse Thruster | x2 | -7/Factory | Preloaded R-06 Scavenger | x2 | -7/Factory | Preloaded Cld. Nuclear Pulse Thruster | x1 | -5/Factory | Authchip Exp. Propulsion Shielding | x1 | -5/Factory | Authchip Cld. Nuclear Pulse Thruster | x1 | -5/Factory Exp. Melee Analysis Suite | x1 | -4/Factory | Authchip Exp. Melee Analysis Suite | x1 | -4/Factory | Authchip Adv. Gravity Neutralizer | x1 | -4/Factory | Authchip Alien Tech Used ----------------- None Achievements -------------- None Challenges ------------ None Game ------ Seed ImpactAntigravNanovents Manual? 0 Play Time 03:14:12 Cumulative 240.1 hours Start 2025.05.05 @ 18:37:08 End 2025.05.06 @ 19:19:52 Sessions 3 Manual Loads 0 Difficulty Rogue Special Mode None Game No. 155 Rogue 155 Adventurer 0 Explorer 0 Win Type - Total 13 Types 6/0/5/1/0/0/0/1/0 Lore% 75 Gallery% 76 Achievement% 73 Wizard Run 0 Options --------- Layout 0 ASCII 0 Keyboard 0 Movement Mouse Keybinds 0 Fullscreen 2 Font 24/Smallcaps Map View 76x50 Zoom Use 0% Tactical HUD 1 Map Filters NONE Filters NONE Steam 1 RUN: 988b57ea-14f7-4194-bcf9-338133a4837b